bitfinex/quotes_ETHUSD_20220226
["timestamp","ask_amount","ask_price","bid_price","bid_amount"]
[1645905992113,0.13716309,2814.3,2813.7,4.85200016]
[1645905992321,1.0,2814.6,2813.8,1.35200016]
[1645905992516,1.0,2814.6,2813.9,3.5]
[1645905992517,0.13709451,2814.5,2813.9,3.5]
[1645905992715,0.13709451,2814.5,2814.0,1.35200016]
[1645905992913,0.13709451,2814.5,2814.1,3.5]
[1645905993117,8.27495831,2815.1,2813.9,3.62585]
[1645905993317,0.13708638,2815.0,2814.0,1.35204756]
[1645905993914,0.13708638,2815.0,2814.1,3.5]
[1645905994318,0.00150171,2814.6,2813.9,3.8]
[1645905994515,0.00150171,2814.6,2814.3,1.05689834]
[1645905995265,0.00300342,2814.6,2814.3,2.20669834]
[1645905995466,0.00150171,2814.6,2814.3,2.20669834]
[1645905995668,0.00150171,2814.6,2814.3,6.00669834]
[1645905995875,0.00150171,2814.6,2814.4,1.49455931]
[1645905996067,0.5,2815.3,2815.2,1.34768192]
[1645905996268,0.66835831,2815.7,2815.2,2.32658192]
[1645905996468,1.0281584,2816.0,2815.2,2.32658192]
[1645905996469,1.16835831,2815.8,2815.2,2.32658192]
[1645905996667,0.5,2815.8,2815.2,2.32658192]
[1645905997479,0.5,2815.8,2815.2,2.62658192]
[1645905997872,0.5,2815.8,2815.3,3.5]
[1645905998916,0.00150171,2815.7,2815.2,1.94768192]
[1645905999120,0.00150171,2815.7,2815.2,1.64768192]
[1645906000024,0.66835831,2816.0,2815.2,1.64768192]
[1645906000219,0.66835831,2816.1,2815.2,1.64768192]
[1645906001022,0.66835831,2816.1,2815.1,0.31285769]
[1645906001227,0.66835831,2815.8,2815.1,0.01285769]
[1645906001623,0.66835831,2815.7,2815.1,0.01285769]
[1645906002224,0.66835831,2815.8,2815.1,0.01285769]
[1645906002671,0.66835831,2815.7,2815.1,0.01285769]
[1645906002869,1.55696831,2815.7,2815.1,0.01285769]
[1645906003468,0.88861,2815.7,2815.1,0.01285769]
[1645906003867,0.00499283,2815.5,2815.1,0.01285769]
[1645906004067,0.00499283,2815.5,2815.1,0.01052951]
[1645906004667,1.55696831,2815.7,2815.1,0.01052951]
[1645906004866,0.00499283,2815.4,2815.1,0.01052951]
[1645906005466,0.00399283,2815.4,2815.1,0.01052951]
[1645906005868,0.3548,2815.8,2815.1,0.01052951]
[1645906006140,1.67505831,2815.9,2815.1,0.01052951]
[1645906006327,1.17835831,2815.9,2815.1,0.01052951]
[1645906006730,1.17835831,2815.9,2815.4,1.43815052]
[1645906006731,0.66835831,2815.8,2815.4,1.43815052]
[1645906006930,0.66835831,2815.8,2815.1,0.01052951]
[1645906008633,0.00499033,2815.6,2815.1,0.01052951]
[1645906009635,0.66835831,2815.8,2815.1,0.01052951]
[1645906009864,0.00499033,2815.5,2815.1,0.01052951]
[1645906010766,0.66835831,2815.8,2815.1,0.01052951]
[1645906011066,0.00499033,2815.4,2815.1,0.01052951]
[1645906011668,0.00499033,2815.4,2815.1,0.00523495]
[1645906011868,2.16505831,2816.0,2815.1,0.00523495]
[1645906012268,0.00499033,2815.4,2815.1,0.00523495]
[1645906013077,0.3548,2815.8,2815.1,0.00523495]
[1645906013370,0.66835831,2815.9,2815.1,0.00523495]
[1645906013371,0.00499033,2815.4,2815.1,0.00523495]
[1645906014414,0.66835831,2815.8,2815.1,0.00523495]
[1645906014616,0.00499033,2815.4,2815.1,0.00523495]
[1645906015516,0.66835831,2815.8,2815.1,0.00523495]
[1645906015722,0.00499033,2815.4,2815.1,0.00523495]
[1645906016117,0.13440375,2815.3,2815.1,0.00523495]
[1645906016916,0.13440375,2815.2,2815.1,0.00523495]
[1645906017362,0.0014971,2815.3,2815.1,0.00523495]
[1645906017969,1.15756206,2815.9,2815.1,0.00523495]
[1645906018171,0.0014971,2815.3,2815.1,3.50523495]
[1645906018379,0.0014971,2815.3,2815.2,1.35469777]
[1645906018572,0.0014971,2815.3,2815.2,5.85469777]
[1645906019168,0.13441199,2816.1,2815.2,5.85469777]
[1645906019472,0.0014971,2815.4,2815.2,4.8]
[1645906019669,0.0014971,2815.4,2815.3,3.5]
[1645906020275,0.13441199,2816.1,2815.3,3.5]
[1645906020473,0.13441199,2816.1,2815.7,1.19544627]
[1645906020877,0.13441199,2816.1,2815.3,3.5]
[1645906021128,0.13441199,2816.1,2815.2,1.6]
[1645906021129,0.48921199,2816.2,2815.2,1.6]
[1645906021329,0.13441199,2816.1,2815.2,4.8]
[1645906021930,0.00499033,2815.8,2815.4,1.13552343]
[1645906022128,0.13441199,2815.7,2815.4,1.13552343]
[1645906023035,0.13441199,2815.6,2815.4,1.13552343]
[1645906024137,0.00499033,2815.6,2815.3,0.3]
[1645906024340,0.00499033,2815.6,2815.2,5.33525577]
[1645906025075,1.55663831,2816.3,2815.2,5.33525577]
[1645906025272,0.13054932,2816.2,2815.4,1.30298685]
[1645906025475,0.13054932,2816.2,2815.2,5.33525577]
[1645906025476,0.00499033,2815.5,2815.2,5.33525577]
[1645906025674,0.00499033,2815.5,2815.2,1.3]
[1645906026077,0.00499033,2815.5,2815.2,1.0]
[1645906026277,0.3548,2816.0,2815.1,1.2424]
[1645906026476,0.13058031,2815.9,2815.1,1.2424]
[1645906026674,0.00499033,2815.5,2815.1,1.2424]
[1645906026876,0.13058031,2815.4,2815.1,1.2424]
[1645906027075,0.13058031,2815.4,2814.8,0.00348552]
[1645906027275,0.13058031,2815.4,2814.7,1.35753603]
[1645906027476,0.13058031,2815.4,2814.7,1.66102155]
[1645906027675,0.13058031,2815.4,2814.7,0.30348552]
[1645906027876,0.00499033,2815.2,2814.7,0.30348552]
[1645906028076,0.13062066,2815.1,2814.7,0.3]
[1645906028276,0.13062066,2815.1,2814.6,5.49893549]
[1645906028476,0.13062066,2815.1,2814.7,8.46342411]
[1645906028721,0.13062066,2815.1,2814.7,7.1056]
[1645906028916,3.5,2815.7,2814.7,7.1056]
[1645906029118,0.00499011,2815.1,2814.7,7.10908552]
[1645906029314,0.00499011,2815.1,2814.7,7.1056]
[1645906029918,2.91566831,2815.8,2814.7,7.1056]
[1645906030114,0.0049902,2815.1,2814.7,7.10908552]
[1645906030315,0.0049902,2815.1,2814.8,1.35919246]
[1645906030716,0.0049902,2815.1,2814.7,7.4056]
[1645906030915,0.0049902,2815.1,2814.7,7.1056]
[1645906031116,0.13010333,2815.0,2814.7,7.1056]
[1645906031323,0.8886,2815.6,2814.7,7.1056]
[1645906031515,0.0049902,2815.1,2814.7,7.1056]
[1645906031718,0.13009942,2815.0,2814.7,7.1056]
[1645906032679,0.00499011,2815.1,2814.7,7.1056]
[1645906032881,0.13009942,2815.0,2814.7,7.1056]
[1645906033684,0.13009942,2814.9,2814.7,7.1056]
[1645906033988,0.13508953,2815.1,2814.7,7.1056]
[1645906034183,0.13009942,2815.0,2814.7,7.1056]
[1645906034983,0.13009942,2814.9,2814.7,7.1056]
[1645906035186,0.13009942,2814.8,2814.7,7.1056]
[1645906035383,0.13009942,2815.0,2814.7,7.1056]
[1645906035583,0.13009942,2814.9,2814.7,7.1056]
[1645906035883,0.13009942,2814.8,2814.7,7.1056]
[1645906036124,0.13009942,2814.8,2814.7,8.46840443]
[1645906036324,0.13009942,2815.0,2814.7,8.46840443]
[1645906036530,0.13009942,2815.0,2814.7,7.1056]
[1645906037333,0.13009942,2814.9,2814.8,1.36392526]
[1645906037528,0.13009942,2815.0,2814.7,7.1056]
[1645906037727,0.13009942,2815.0,2814.8,1.364344]
[1645906038528,0.13009942,2815.1,2814.8,1.364344]
[1645906038730,0.13508962,2815.1,2814.8,1.364344]
[1645906038932,0.13009942,2815.0,2814.8,1.364344]
[1645906039732,0.13508962,2815.1,2814.8,1.364344]
[1645906039977,0.13009942,2815.0,2814.8,1.364344]
[1645906040978,0.13009942,2814.9,2814.8,1.364344]
[1645906041179,0.13009942,2815.0,2814.8,1.364344]
[1645906041378,0.13009942,2814.9,2814.8,1.364344]
[1645906041579,0.13009942,2815.0,2814.8,1.364344]
[1645906042179,0.13508962,2815.1,2814.8,1.364344]
[1645906042378,0.13009942,2815.0,2814.8,1.364344]
[1645906043484,0.13009942,2814.9,2814.8,1.364344]
[1645906043923,0.13009942,2815.0,2814.8,1.364344]
[1645906044126,0.13009942,2814.9,2814.8,1.364344]
[1645906044330,0.13009942,2815.0,2814.8,1.36526176]
[1645906044528,0.13009942,2814.9,2814.8,1.36526176]
[1645906044925,0.13009942,2815.0,2814.8,1.36526176]
[1645906045125,0.13009942,2814.9,2814.8,1.36526176]
[1645906045525,0.13009942,2815.0,2814.8,1.36526176]
[1645906045727,0.13009942,2814.9,2814.8,1.36526176]
[1645906045925,0.13009942,2815.0,2814.8,1.36526176]
[1645906046935,0.13009942,2814.9,2814.8,1.36526176]
[1645906047128,0.13508962,2815.1,2814.8,1.36526176]
[1645906047380,0.13009942,2815.0,2814.8,1.36526176]
[1645906047583,0.13009942,2815.0,2814.8,2.5317368]
[1645906047784,0.13009942,2815.0,2814.9,1.36526176]
[1645906047984,0.13009942,2815.0,2814.9,1.3644396]
[1645906048183,0.0049902,2815.1,2814.9,1.3644396]
[1645906048383,0.0049902,2815.1,2814.7,7.1056]
[1645906049183,1.55694831,2815.2,2814.7,7.1056]
[1645906049386,0.0049902,2815.1,2814.7,7.1056]
[1645906049784,0.0049902,2815.1,2814.7,8.29358209]
[1645906050384,1.55694831,2815.2,2814.7,8.29358209]
[1645906050685,0.0049902,2815.1,2814.7,8.29358209]
[1645906051537,0.88859,2815.2,2814.7,8.29358209]
[1645906051935,0.0049902,2815.1,2814.7,8.29358209]
[1645906052740,1.55694831,2815.2,2814.7,8.29358209]
[1645906052943,1.55694831,2815.2,2814.7,7.1056]
[1645906053143,0.0049902,2815.1,2814.7,7.1056]
[1645906054044,1.55694831,2815.2,2814.7,8.51885779]
[1645906054245,0.0049902,2815.1,2814.7,8.51885779]
[1645906055106,1.55694831,2815.2,2814.7,8.51885779]
[1645906055406,0.0049902,2815.1,2814.7,8.51885779]
[1645906056307,1.55694831,2815.2,2814.7,8.51885779]
[1645906056505,0.00402745,2815.1,2814.7,7.1056]
[1645906057511,1.55694831,2815.2,2814.7,7.1056]
[1645906057713,0.00402745,2815.1,2814.8,1.06575013]
[1645906057909,0.00402745,2815.1,2814.7,7.1056]
[1645906058728,1.55694831,2815.2,2814.7,7.1056]
[1645906058931,0.00402745,2815.1,2814.7,7.1056]
[1645906059127,0.67238576,2815.1,2814.7,7.1056]
[1645906059328,0.00402745,2815.1,2814.7,8.27347826]
[1645906059527,0.00402745,2815.1,2814.7,7.1056]
[1645906059934,1.55694831,2815.2,2814.7,7.1056]
[1645906060130,0.00402745,2815.1,2814.7,7.1056]
[1645906061131,0.66835831,2815.1,2814.7,7.1056]
[1645906061335,0.67256078,2815.1,2814.7,7.1056]
[1645906061632,0.8887,2814.9,2814.7,7.1056]
[1645906063185,0.66835831,2814.8,2814.7,7.1056]
[1645906063383,0.8887,2814.9,2814.7,7.1056]
[1645906063587,0.67053154,2814.8,2814.7,7.1056]
[1645906063790,0.67053154,2814.8,2814.7,4.02e-05]
[1645906063791,3.02097327,2814.8,2814.7,4.02e-05]
[1645906063990,3.02097327,2814.8,2814.3,0.00493724]
[1645906063991,8.3548,2814.7,2814.3,0.00493724]
[1645906064287,4.0,2814.4,2813.8,0.07963178]
[1645906064485,0.67005686,2814.2,2813.7,0.62711514]
[1645906064685,1.02485686,2814.2,2813.7,0.62711514]
[1645906064886,0.3548,2814.2,2813.7,0.62711514]
[1645906065890,1.7781262,2814.1,2813.7,0.62711514]
[1645906068241,0.1467751,2814.0,2813.7,0.62711514]
[1645906068640,0.1467751,2814.0,2813.8,0.00516998]
[1645906069541,0.1467751,2814.0,2813.7,0.62711514]
[1645906069884,0.1467751,2814.0,2813.8,0.00516998]
[1645906070292,0.1467751,2813.9,2813.8,0.00516998]
[1645906070888,0.1467751,2814.0,2813.7,0.62711514]
[1645906071085,0.1467751,2814.0,2813.7,0.63228518]
[1645906071885,0.1467751,2814.0,2813.7,0.62711514]
[1645906072286,0.1467751,2814.0,2813.7,0.51972407]
[1645906072692,0.6567751,2814.0,2813.7,0.51972407]
[1645906072896,0.1467751,2813.9,2813.7,0.51972407]
[1645906073098,0.51,2813.8,2813.7,0.51605224]
[1645906073303,0.6567751,2813.8,2813.7,0.51605224]
[1645906073495,0.6567751,2813.8,2813.7,0.52122502]
[1645906074347,0.6567751,2813.8,2813.7,0.51605224]
[1645906075849,0.1467751,2813.8,2813.7,0.51605224]
[1645906076247,0.1467751,2814.0,2813.7,0.51605224]
[1645906077247,0.1467751,2814.0,2813.7,0.52122502]
[1645906077689,0.1467751,2814.0,2813.5,5.55888917]
[1645906078193,0.1467751,2814.0,2813.3,0.00347117]
[1645906078387,0.1467751,2814.0,2813.2,1.31175479]
[1645906078587,0.1467751,2813.9,2813.3,1.34359953]
[1645906078888,0.1467751,2813.8,2813.3,1.3470707]
[1645906079088,4.01,2814.3,2813.3,1.3470707]
[1645906079286,0.14646198,2813.7,2813.3,1.3470707]
[1645906079487,0.14646198,2814.2,2813.3,1.34359953]
[1645906079687,0.14645315,2814.1,2813.4,0.00347117]
[1645906079888,0.14645315,2814.0,2813.4,0.00347117]
[1645906080088,0.14645315,2813.9,2813.4,0.00347117]
[1645906080288,0.14645315,2813.8,2813.3,1.34359953]
[1645906080492,0.14645315,2814.2,2813.3,1.34359953]
[1645906080694,0.14645315,2814.2,2813.6,0.00366928]
[1645906080695,0.14643827,2814.1,2813.6,0.00366928]
[1645906081628,0.14643827,2814.1,2813.3,1.34321493]
[1645906081831,0.14643827,2814.1,2813.6,0.00517306]
[1645906082029,0.14643827,2814.1,2813.7,1.28117639]
[1645906082230,0.14643827,2814.1,2813.6,0.00517306]
[1645906082435,3.64643827,2814.1,2813.6,0.00517306]
[1645906082637,0.65643827,2814.0,2813.6,0.00517306]
[1645906082835,3.78853827,2813.9,2813.0,0.00347117]
[1645906083038,0.65643827,2813.8,2813.6,0.00517306]
[1645906083238,0.14643827,2813.7,2813.6,0.00517306]
[1645906084036,3.64643827,2813.7,2813.1,0.00347117]
[1645906084241,0.14643827,2813.6,2813.5,0.00517304]
[1645906084437,0.14643827,2813.6,2813.5,0.00415106]
[1645906084882,3.64643827,2813.6,2813.5,0.00415106]
[1645906085278,4.64643827,2813.6,2813.1,0.00347117]
[1645906085480,4.64643827,2813.6,2812.9,1.1865]
[1645906085680,4.64643827,2813.6,2812.7,0.00347117]
[1645906086080,0.14643827,2813.5,2812.7,0.00347117]
[1645906086284,0.14643827,2813.5,2812.7,1.34596745]
[1645906086885,0.51,2813.4,2812.7,1.34596745]
[1645906087091,0.51,2813.4,2812.5,0.00347117]
[1645906087092,4.00123827,2813.3,2812.5,0.00347117]
[1645906087283,0.3548,2813.1,2812.3,1.33730499]
[1645906087485,0.3548,2812.9,2812.3,1.28730499]
[1645906087685,0.3548,2812.9,2811.9,4.5411]
[1645906087887,0.3548,2812.9,2811.9,2.6364758]
[1645906087888,3.5,2812.8,2811.9,2.6364758]
[1645906088084,0.3548,2812.9,2811.9,2.6364758]
[1645906088085,0.8648,2812.9,2811.9,2.6364758]
[1645906088490,3.5,2812.8,2811.9,3.9364758]
[1645906088739,0.8648,2812.9,2811.9,2.9364758]
[1645906088938,0.51,2812.9,2811.9,2.9364758]
[1645906089140,3.5,2812.8,2812.3,0.00517467]
[1645906089336,0.51,2812.9,2812.3,0.00517467]
[1645906089749,0.1421,2813.0,2812.3,0.00517467]
[1645906089938,0.1421,2813.0,2811.9,1.2012]
[1645906090139,0.1421,2813.0,2812.5,1.30440895]
[1645906090337,0.1421,2813.0,2812.5,0.00517441]
[1645906091144,0.1421,2813.0,2811.9,1.2012]
[1645906091338,0.1421,2813.0,2812.6,0.00517422]
[1645906092381,0.1421,2813.0,2812.1,1.27742797]
[1645906092584,0.1421,2813.0,2812.7,0.00517415]
[1645906093387,4.8543,2813.1,2812.7,0.00517415]
[1645906093585,4.8543,2813.1,2812.1,1.27742797]
[1645906093792,4.8543,2813.1,2812.7,0.00517409]
[1645906094085,1.3543,2813.1,2812.7,0.00517409]
[1645906094690,0.0282981,2812.9,2812.7,0.00517409]
[1645906094997,3.5,2813.4,2812.3,0.02069945]
[1645906094998,0.1421,2813.5,2812.8,0.00517402]
[1645906095194,1.0,2813.6,2813.1,0.01283326]
[1645906095392,1.0,2813.6,2813.2,1.14893085]
[1645906095588,1.0,2813.6,2813.3,3.5]
[1645906095790,1.0,2813.6,2813.3,2.8436]
[1645906095991,1.0,2813.6,2813.5,0.3548]
[1645906096234,1.0,2813.6,2813.5,4.1548]
[1645906096634,0.005026,2814.3,2813.5,0.6548]
[1645906096836,0.005026,2814.3,2813.5,4.158256]
[1645906097032,0.005026,2814.3,2814.1,1.20595272]
[1645906097238,0.1421,2814.8,2814.1,1.20595272]
[1645906097639,0.0050268,2814.3,2814.1,1.20595272]
[1645906098436,1.81215686,2814.9,2814.1,1.20595272]
[1645906098644,0.0050273,2814.3,2814.1,1.20595272]
[1645906099639,0.1421,2814.7,2814.1,1.20595272]
[1645906099887,0.0050273,2814.3,2814.1,1.20595272]
[1645906100887,0.67005686,2814.8,2814.1,1.20595272]
[1645906101091,0.0050273,2814.3,2814.1,1.20595272]
[1645906101990,0.67005686,2815.0,2814.1,1.20595272]
[1645906102197,0.00498159,2814.3,2814.1,1.20595272]
[1645906103201,0.67005686,2815.0,2814.1,1.20595272]
[1645906103396,0.00498159,2814.3,2814.1,1.20595272]
[1645906104435,0.67005686,2814.9,2814.1,0.95295252]
[1645906104636,0.00498159,2814.3,2814.1,0.95295252]
[1645906105536,0.67005686,2814.9,2814.1,0.95295252]
[1645906105938,0.0050273,2814.3,2814.1,0.95295252]
[1645906106744,0.67005686,2814.9,2814.1,0.95295252]
[1645906107142,0.0050273,2814.3,2814.1,0.95295252]
[1645906107605,0.15562717,2814.2,2814.1,0.95295252]
[1645906108206,0.00502725,2814.3,2814.1,0.95295252]
[1645906108405,0.15562717,2814.2,2813.9,0.3]
[1645906108804,0.15562717,2814.2,2813.7,2.988756]
[1645906109005,0.15562717,2814.2,2813.8,1.68997354]
[1645906109205,0.15562717,2814.2,2813.9,1.33517354]
[1645906109408,0.00502689,2814.3,2813.9,1.33517354]
[1645906109605,0.15099851,2814.2,2813.9,1.33517354]
[1645906110010,0.15099851,2814.2,2814.0,1.40773661]
[1645906110606,0.00502716,2814.3,2814.0,1.40773661]
[1645906110808,0.15103742,2814.2,2814.0,1.40773661]
[1645906111936,0.00502716,2814.3,2814.0,1.40773661]
[1645906112132,0.15100235,2814.2,2813.8,0.3548]
[1645906112436,0.15100235,2814.2,2813.9,1.33934831]
[1645906112635,0.15100235,2814.2,2813.9,1.63934831]
[1645906112836,0.15100235,2814.2,2813.9,0.3]
[1645906113047,0.67005686,2814.9,2813.9,0.3]
[1645906113048,0.00150812,2814.3,2813.9,19.0863]
[1645906113242,0.00150812,2814.3,2814.1,0.3548]
[1645906113439,0.00150812,2814.3,2814.2,0.1421]
[1645906113641,0.00150812,2814.3,2814.2,2.0393]
[1645906113838,0.00150812,2814.3,2814.2,3.1722]
[1645906114138,4.17005686,2815.5,2815.1,1.26549756]
[1645906114340,4.17005686,2815.5,2814.6,0.5424]
[1645906114341,0.67005686,2815.5,2814.6,0.5424]
[1645906114736,2.98535686,2815.6,2814.6,0.5424]
[1645906114982,1.81755686,2815.6,2814.6,0.5424]
[1645906115283,1.81755686,2815.6,2814.7,0.88839]
[1645906115284,1.1475,2815.6,2814.7,0.88839]
[1645906115482,0.0050273,2815.2,2814.7,0.88839]
[1645906115684,0.0050273,2815.2,2815.0,1.36471141]
[1645906116482,0.67005686,2815.6,2815.0,1.36471141]
[1645906116683,0.00405849,2815.2,2815.0,1.36471141]
[1645906117688,0.67005686,2815.6,2815.0,1.36471141]
[1645906117887,0.00405849,2815.2,2815.0,1.36471141]
[1645906118932,0.00370232,2815.6,2815.0,1.36471141]
[1645906119131,0.00405849,2815.2,2815.0,1.36471141]
[1645906119933,0.67375918,2815.7,2815.0,1.36471141]
[1645906120333,0.00405849,2815.2,2815.0,1.36471141]
[1645906120535,0.00405849,2815.2,2814.8,0.3]
[1645906120737,0.00405849,2815.2,2814.7,2.0188]
[1645906121140,1.02485686,2815.6,2814.7,1.4764]
[1645906121540,0.00419883,2815.1,2814.7,1.4764]
[1645906121944,0.00419883,2815.1,2814.6,0.1419]
[1645906122393,0.3548,2815.3,2814.6,0.1419]
[1645906122792,0.00419883,2815.0,2814.6,0.1419]
[1645906123692,4.52485686,2815.4,2814.7,1.09294276]
[1645906123895,0.00419883,2814.9,2814.7,1.09294276]
[1645906124493,0.00419883,2814.9,2814.6,0.1419]
[1645906124899,4.52485686,2815.4,2814.6,0.1419]
[1645906125096,0.00417854,2814.9,2814.6,0.1419]
[1645906126146,0.1421,2815.4,2814.6,0.1419]
[1645906126349,0.00417854,2814.9,2814.6,0.1419]
[1645906126549,0.00417854,2814.9,2814.8,1.36221628]
[1645906126747,0.00417854,2814.9,2814.6,0.1419]
[1645906127347,4.66695686,2815.4,2814.6,0.1419]
[1645906127555,0.00417854,2814.9,2814.6,0.1419]
[1645906128353,1.16695686,2815.4,2814.6,0.1419]
[1645906128754,0.0041815,2814.9,2814.6,0.1419]
[1645906129557,0.3548,2815.2,2814.6,0.1419]
[1645906129982,0.0041815,2814.9,2814.6,0.1419]
[1645906130783,0.3548,2815.3,2814.6,0.1419]
[1645906131085,0.00125445,2814.9,2814.6,0.1419]
[1645906132084,0.3548,2815.3,2814.6,0.1419]
[1645906132385,0.00125432,2814.9,2814.6,0.1419]
[1645906132986,0.00125432,2814.9,2814.8,1.42309562]
[1645906133186,0.12535454,2815.2,2814.6,0.1419]
[1645906133389,0.00125432,2814.9,2814.6,0.1419]
[1645906134235,0.00125432,2814.9,2814.6,0.0919]
[1645906134429,0.12535454,2815.2,2814.6,0.0919]
[1645906134633,0.00418107,2814.9,2814.6,0.0919]
[1645906134853,0.12535454,2814.8,2814.6,0.0919]
[1645906135032,0.12535454,2814.7,2814.6,0.0919]
[1645906135831,0.12535454,2815.2,2814.6,0.0919]
[1645906136033,0.0045067,2814.8,2814.6,0.0919]
[1645906136232,0.12535454,2814.7,2814.6,0.0919]
[1645906136442,0.00370232,2815.4,2814.6,7.5525]
[1645906136639,0.00370232,2815.4,2814.7,8.8548]
[1645906136841,0.00370232,2815.7,2814.8,11.33]
[1645906137036,0.67005686,2815.9,2815.0,0.8972]
[1645906137234,0.67005686,2815.9,2815.6,1.15847992]
[1645906137235,0.00370232,2815.8,2815.6,1.15847992]
[1645906137503,0.89344522,2816.2,2815.6,2.25907992]
[1645906137504,0.67005686,2816.0,2815.6,2.25907992]
[1645906137700,0.67005686,2816.0,2815.6,2.55907992]
[1645906137904,0.62005686,2816.0,2815.6,2.55907992]
[1645906138096,0.62005686,2816.0,2815.6,3.10147992]
[1645906138297,0.89714754,2816.2,2815.6,2.55907992]
[1645906138497,0.89344522,2816.2,2815.6,2.55907992]
[1645906138701,0.89344522,2816.2,2815.6,3.74717522]
[1645906138899,0.89344522,2816.2,2815.6,7.24717522]
[1645906139298,0.89344522,2816.2,2815.6,8.13529522]
[1645906139499,0.00501603,2816.0,2815.6,8.13529522]
[1645906140300,0.02006112,2816.5,2815.8,10.0]
[1645906140527,0.02006112,2816.5,2815.7,7.5]
[1645906140528,0.5,2816.7,2816.1,11.1748]
[1645906140711,3.42201951,2817.9,2816.1,11.1748]
[1645906140712,0.02006112,2816.4,2816.2,22.49216379]
[1645906140903,4.3204,2818.1,2816.6,1.77527]
[1645906140904,4.6752,2818.1,2816.6,1.77527]
[1645906141143,4.6752,2818.1,2816.7,3.5]
[1645906141339,3.4878,2818.1,2817.0,1.0]
[1645906141539,0.3548,2818.1,2817.2,0.8876191]
[1645906141738,0.3548,2818.1,2817.2,2.32553256]
[1645906141936,0.5,2818.0,2817.3,0.3]
[1645906142843,0.5,2818.0,2817.3,3.8]
[1645906144245,0.00489434,2817.8,2817.3,3.8]
[1645906144446,0.00489434,2817.8,2817.3,3.08688653]
[1645906144897,0.00489434,2817.8,2817.3,3.38688653]
[1645906145296,0.8548,2818.0,2817.3,3.08688653]
[1645906145501,0.00489434,2817.7,2816.9,0.5424]
[1645906145702,0.3548,2817.6,2816.3,2.19426717]
[1645906145896,0.3548,2817.4,2816.3,1.19426717]
[1645906146096,0.3548,2817.4,2816.3,0.00516717]
[1645906146294,3.5,2817.3,2816.3,0.00516717]
[1645906146495,0.3548,2817.4,2816.2,10.3038]
[1645906146696,0.3548,2817.4,2816.6,1.23449355]
[1645906146697,0.00489434,2817.0,2816.6,1.23449355]
[1645906146895,0.00489434,2817.0,2816.6,1.53449355]
[1645906147500,0.00489434,2817.0,2816.6,1.23449355]
[1645906147701,0.00370117,2817.6,2816.6,1.23449355]
[1645906147901,0.00489434,2816.9,2816.6,1.23449355]
[1645906148101,0.00489434,2816.9,2816.5,0.3]
[1645906148307,0.00489434,2816.9,2816.3,0.30516678]
[1645906148945,0.66571612,2817.3,2816.3,0.3]
[1645906149145,0.00489434,2816.7,2816.4,1.38060485]
[1645906150043,0.00489434,2816.7,2816.3,0.30516667]
[1645906150044,0.66571612,2817.2,2816.2,11.3538]
[1645906150244,0.66571612,2817.3,2816.2,11.3538]
[1645906150441,0.00489434,2816.7,2816.3,0.00516665]
[1645906151042,0.00489434,2816.7,2816.2,12.43478665]
[1645906151241,0.66571612,2817.3,2816.4,1.07059218]
[1645906152494,0.66571612,2817.3,2816.4,1.02059218]
[1645906152692,0.00490726,2817.0,2816.4,1.02059218]
[1645906153093,0.00490726,2817.0,2816.3,0.0051668]
[1645906153695,0.66571612,2817.4,2816.2,13.32269665]
[1645906153892,0.00479796,2816.8,2816.3,0.8878726]
[1645906154092,0.00479796,2816.8,2816.6,1.31454443]
[1645906154592,0.00479796,2816.8,2816.3,1.1878726]
[1645906154791,0.00368235,2817.3,2816.3,1.1878726]
[1645906154992,0.03149413,2816.6,2816.3,1.1878726]
[1645906155591,0.03149413,2816.6,2816.3,2.05281461]
[1645906155793,0.03149413,2816.6,2816.3,2.35281461]
[1645906155998,0.03149413,2816.6,2816.3,2.05281461]
[1645906156230,0.03149413,2816.6,2816.4,3.5]
[1645906156429,0.03629233,2816.6,2816.4,3.5]
[1645906157230,0.03149413,2816.6,2816.4,6.8180842]
[1645906157438,0.03149413,2816.6,2816.5,3.8548]
[1645906157637,0.03628839,2816.6,2816.5,3.8548]
[1645906157839,0.01917336,2817.2,2816.5,6.9072]
[1645906158037,0.07502994,2817.1,2816.7,1.24244]
[1645906158239,0.07502994,2817.1,2816.9,2.77527]
[1645906158441,0.07502994,2817.1,2817.0,3.5]
[1645906158838,0.07871229,2817.7,2817.0,3.5]
[1645906159036,0.07502994,2817.6,2817.0,3.5]
[1645906159339,0.00368235,2817.7,2817.3,1.14153279]
[1645906159538,0.74074606,2817.8,2817.4,3.5]
[1645906159738,0.07502994,2817.7,2817.4,3.5]
[1645906159990,0.07502994,2817.6,2817.3,2.17217]
[1645906160192,0.00368235,2817.9,2817.8,1.04209477]
[1645906160392,0.07501883,2817.9,2817.8,1.04209477]
[1645906160794,0.07501883,2817.9,2817.8,4.54209477]
[1645906160993,0.07501883,2817.9,2817.8,8.13979477]
[1645906161196,0.07501883,2817.9,2817.8,11.63979477]
[1645906161792,0.00147015,2818.0,2817.8,12.52715477]
[1645906162194,0.07501883,2818.3,2817.8,8.13979477]
[1645906162394,0.07501883,2818.2,2817.8,7.3977]
[1645906162801,0.07501883,2818.1,2817.8,7.0977]
[1645906162998,0.07501883,2818.0,2817.8,7.0977]
[1645906163198,0.00368235,2818.3,2817.8,7.0977]
[1645906163396,0.07501883,2818.4,2817.8,7.0977]
[1645906163639,0.66571612,2818.5,2817.8,7.0977]
[1645906164431,0.66571612,2818.5,2817.8,5.62906951]
[1645906164634,0.07068634,2818.7,2817.8,5.62906951]
[1645906164834,0.7381619,2818.6,2817.8,5.62906951]
[1645906165235,1.0929619,2818.6,2817.8,5.62906951]
[1645906165435,0.7381619,2818.5,2817.8,5.62906951]
[1645906165636,0.07501596,2818.4,2817.8,5.62906951]
[1645906165839,0.07501596,2818.3,2817.8,5.62906951]
[1645906166036,0.07501596,2818.2,2817.8,5.62906951]
[1645906167038,0.00368235,2818.5,2817.8,5.62906951]
[1645906167039,0.07501596,2818.1,2817.8,5.62906951]
[1645906167239,0.00488622,2818.1,2817.8,5.62906951]
[1645906167497,0.07501354,2818.0,2817.8,5.62906951]
[1645906168298,0.73383228,2818.7,2817.8,5.62906951]
[1645906168503,0.73383228,2818.7,2817.8,7.40390951]
[1645906168504,0.00488622,2818.0,2817.8,7.40390951]
[1645906168700,0.00488622,2818.0,2817.8,7.70390951]
[1645906169107,0.00488622,2818.0,2817.8,7.40390951]
[1645906169403,0.07068634,2818.7,2818.2,1.13792758]
[1645906169604,0.01954196,2818.5,2818.2,1.13792758]
[1645906170603,0.06700399,2818.7,2817.8,8.59131421]
[1645906170803,0.00488622,2818.5,2817.8,8.59131421]
[1645906171650,0.06700399,2818.7,2818.1,1.09454305]
[1645906172042,0.00488622,2818.3,2818.1,1.09454305]